[Event "Titled Tuesday Blitz May 23 Early 2023"]
[White "Ruge, Edison"]
[Black "Omariev, Maksim"]
[WhiteFideId "4401000"]
[BlackFideId "4193423"]
[WhiteElo "2175"]
[BlackElo "2511"]
[Result "1-0"]
[Round "03"]
[TimeControl "180+2"]
[Date "2023.05.23"]
[WhiteClock "0:00:15"]
[BlackClock "0:00:00"]

1. e4 {[%clk 0:02:57]}  c5 {[%clk 0:02:56]} 2. Nf3 {[%clk 0:02:57]}  d6 {[%clk 0:02:56]} 3. d3 {[%clk 0:02:58]}  Nc6 {[%clk 0:02:55]} 4. Nbd2 {[%clk 0:02:57]}  g6 {[%clk 0:02:55]} 5. g3 {[%clk 0:02:58]}  Bg7 {[%clk 0:02:56]} 6. Bg2 {[%clk 0:02:58]}  e5 {[%clk 0:02:56]} 7. h4 {[%clk 0:02:58]}  h6 {[%clk 0:02:55]} 8. O-O {[%clk 0:02:53]}  Nge7 {[%clk 0:02:55]} 9. c3 {[%clk 0:02:53]}  Be6 {[%clk 0:02:55]} 10. a3 {[%clk 0:02:53]}  a5 {[%clk 0:02:54]} 11. a4 {[%clk 0:02:51]}  Qd7 {[%clk 0:02:54]} 12. Nc4 {[%clk 0:02:51]}  Rd8 {[%clk 0:02:51]} 13. Nb6 {[%clk 0:02:49]}  Qc7 {[%clk 0:02:49]} 14. Nc4 {[%clk 0:02:50]}  O-O {[%clk 0:02:42]} 15. Qe2 {[%clk 0:02:48]}  Rfe8 {[%clk 0:02:11]} 16. Re1 {[%clk 0:02:33]}  b6 {[%clk 0:01:25]} 17. h5 {[%clk 0:02:26]}  g5 {[%clk 0:01:25]} 18. Bxg5 {[%clk 0:02:27]}  hxg5 {[%clk 0:01:22]} 19. Nxg5 {[%clk 0:02:28]}  Rb8 {[%clk 0:00:46]} 20. Nxe6 {[%clk 0:02:25]}  fxe6 {[%clk 0:00:46]} 21. Qg4 {[%clk 0:02:25]}  Kf7 {[%clk 0:00:42]} 22. Bh3 {[%clk 0:02:21]}  Qd7 {[%clk 0:00:38]} 23. Re3 {[%clk 0:01:52]}  Rh8 {[%clk 0:00:19]} 24. Rf3+ {[%clk 0:01:45]}  Bf6 {[%clk 0:00:18]} 25. Qg5 {[%clk 0:01:41]}  Ng8 {[%clk 0:00:14]} 26. Qg6+ {[%clk 0:01:40]}  Ke7 {[%clk 0:00:08]} 27. Rxf6 {[%clk 0:01:38]}  Nxf6 {[%clk 0:00:03]} 28. Qg7+ {[%clk 0:01:38]}  Kd8 {[%clk 0:00:03]} 29. Qxh8+ {[%clk 0:01:28]}  Ne8 {[%clk 0:00:03]} 30. h6 {[%clk 0:01:17]}  Kc7 {[%clk 0:00:04]} 31. Qg8 {[%clk 0:01:14]}  Qe7 {[%clk 0:00:03]} 32. h7 {[%clk 0:01:07]}  Nf6 {[%clk 0:00:03]} 33. Qxb8+ {[%clk 0:01:06]}  Nxb8 {[%clk 0:00:04]} 34. h8=Q {[%clk 0:01:05]}  Nbd7 {[%clk 0:00:05]} 35. Kg2 {[%clk 0:01:03]}  d5 {[%clk 0:00:04]} 36. Nd2 {[%clk 0:00:59]}  c4 {[%clk 0:00:04]} 37. dxc4 {[%clk 0:00:53]}  dxe4 {[%clk 0:00:04]} 38. Re1 {[%clk 0:00:53]}  Nc5 {[%clk 0:00:05]} 39. Nxe4 {[%clk 0:00:52]}  Nfxe4 {[%clk 0:00:04]} 40. Rxe4 {[%clk 0:00:47]}  Nxe4 {[%clk 0:00:04]} 41. Qa8 {[%clk 0:00:47]}  Nd6 {[%clk 0:00:05]} 42. Qf3 {[%clk 0:00:43]}  e4 {[%clk 0:00:04]} 43. Qg4 {[%clk 0:00:42]}  e5 {[%clk 0:00:04]} 44. Qg8 {[%clk 0:00:40]}  e3 {[%clk 0:00:03]} 45. fxe3 {[%clk 0:00:39]}  e4 {[%clk 0:00:04]} 46. Qd5 {[%clk 0:00:38]}  Qf6 {[%clk 0:00:03]} 47. Kh2 {[%clk 0:00:34]}  Qf2+ {[%clk 0:00:02]} 48. Bg2 {[%clk 0:00:34]}  Qxe3 {[%clk 0:00:02]} 49. Qd4 {[%clk 0:00:28]}  Qe2 {[%clk 0:00:01]} 50. c5 {[%clk 0:00:26]}  bxc5 {[%clk 0:00:01]} 51. Qxc5+ {[%clk 0:00:26]}  Kd7 {[%clk 0:00:02]} 52. Qa7+ {[%clk 0:00:17]}  Ke6 {[%clk 0:00:02]} 53. Qxa5 {[%clk 0:00:18]}  Qxb2 {[%clk 0:00:00]} 54. g4 {[%clk 0:00:15]} 1-0


[Site "https://www.chess.com"]

[Event "Titled Tuesday Blitz May 23 Early 2023"]
[White "Blackwhite017"]
[Black "Bagwe Gaurang"]
[BlackFideId "45039895"]
[WhiteElo "2087"]
[BlackElo "1847"]
[Result "0-1"]
[Round "03"]
[TimeControl "180+2"]
[Date "2023.05.23"]
[WhiteClock "0:02:30"]
[BlackClock "0:02:53"]

1. e4 {[%clk 0:02:59]}  c5 {[%clk 0:02:59]} 2. Nf3 {[%clk 0:02:59]}  d6 {[%clk 0:02:59]} 3. Nd4 {[%clk 0:02:58]}  cxd4 {[%clk 0:03:00]} 4. c3 {[%clk 0:02:52]}  dxc3 {[%clk 0:02:58]} 5. Nxc3 {[%clk 0:02:53]}  Nc6 {[%clk 0:02:57]} 6. d4 {[%clk 0:02:51]}  e6 {[%clk 0:02:58]} 7. Bd3 {[%clk 0:02:50]}  Nf6 {[%clk 0:02:57]} 8. O-O {[%clk 0:02:50]}  Be7 {[%clk 0:02:57]} 9. h3 {[%clk 0:02:50]}  O-O {[%clk 0:02:57]} 10. Kh1 {[%clk 0:02:50]}  Nxd4 {[%clk 0:02:57]} 11. Bg5 {[%clk 0:02:48]}  e5 {[%clk 0:02:57]} 12. f4 {[%clk 0:02:47]}  h6 {[%clk 0:02:57]} 13. Bh4 {[%clk 0:02:46]}  exf4 {[%clk 0:02:56]} 14. Bc4 {[%clk 0:02:38]}  Ne6 {[%clk 0:02:54]} 15. Nd5 {[%clk 0:02:30]}  Nxd5 {[%clk 0:02:53]} 0-1


[Site "https://www.chess.com"]

[Event "Titled Tuesday Blitz May 23 Early 2023"]
[White "Prohaszka, Peter"]
[Black "Saim, Mohamed Ilias"]
[WhiteFideId "726265"]
[BlackFideId "7900465"]
[WhiteElo "2626"]
[BlackElo "2063"]
[Result "1-0"]
[Round "03"]
[TimeControl "180+2"]
[Date "2023.05.23"]
[WhiteClock "0:01:57"]
[BlackClock "0:00:15"]

1. d4 {[%clk 0:02:52]}  Nf6 {[%clk 0:02:59]} 2. c4 {[%clk 0:02:53]}  e6 {[%clk 0:02:58]} 3. Bf4 {[%clk 0:02:53]}  c5 {[%clk 0:02:55]} 4. d5 {[%clk 0:02:52]}  exd5 {[%clk 0:02:55]} 5. cxd5 {[%clk 0:02:53]}  d6 {[%clk 0:02:56]} 6. Nc3 {[%clk 0:02:54]}  g6 {[%clk 0:02:56]} 7. e3 {[%clk 0:02:54]}  Bg7 {[%clk 0:02:57]} 8. h3 {[%clk 0:02:55]}  O-O {[%clk 0:02:55]} 9. Nf3 {[%clk 0:02:55]}  a6 {[%clk 0:02:47]} 10. a4 {[%clk 0:02:55]}  Re8 {[%clk 0:02:45]} 11. Be2 {[%clk 0:02:55]}  Bf5 {[%clk 0:02:41]} 12. Nd2 {[%clk 0:02:53]}  a5 {[%clk 0:02:34]} 13. O-O {[%clk 0:02:52]}  Na6 {[%clk 0:02:34]} 14. Nc4 {[%clk 0:02:51]}  Bf8 {[%clk 0:02:30]} 15. Nb5 {[%clk 0:02:52]}  Ne4 {[%clk 0:02:13]} 16. f3 {[%clk 0:02:44]}  Nf6 {[%clk 0:02:06]} 17. Ncxd6 {[%clk 0:02:44]}  Bxd6 {[%clk 0:01:56]} 18. Nxd6 {[%clk 0:02:44]}  Rf8 {[%clk 0:01:56]} 19. e4 {[%clk 0:02:41]}  Bc8 {[%clk 0:01:50]} 20. e5 {[%clk 0:02:38]}  Nh5 {[%clk 0:01:49]} 21. Bh6 {[%clk 0:02:38]}  Nb4 {[%clk 0:01:39]} 22. Bxf8 {[%clk 0:02:37]}  Kxf8 {[%clk 0:01:36]} 23. Qd2 {[%clk 0:02:35]}  Kg7 {[%clk 0:01:26]} 24. f4 {[%clk 0:02:35]}  Qh4 {[%clk 0:01:15]} 25. Bxh5 {[%clk 0:02:30]}  Qxh5 {[%clk 0:01:14]} 26. f5 {[%clk 0:02:29]}  Bxf5 {[%clk 0:01:07]} 27. Rxf5 {[%clk 0:02:02]}  gxf5 {[%clk 0:00:58]} 28. Rf1 {[%clk 0:02:02]}  Rf8 {[%clk 0:00:25]} 29. Rxf5 {[%clk 0:02:01]}  Qh6 {[%clk 0:00:20]} 30. Rg5+ {[%clk 0:01:57]}  Kh8 {[%clk 0:00:18]} 31. Rg8+ {[%clk 0:01:56]}  Rxg8 {[%clk 0:00:15]} 32. Qxh6 {[%clk 0:01:57]} 1-0


[Site "https://www.chess.com"]

[Event "Titled Tuesday Blitz May 23 Early 2023"]
[White "Martic, Ivan"]
[Black "Kopczynski, Michal"]
[WhiteFideId "929301"]
[BlackFideId "1124200"]
[WhiteElo "2360"]
[BlackElo "2212"]
[Result "0-1"]
[Round "03"]
[TimeControl "180+2"]
[Date "2023.05.23"]
[WhiteClock "0:00:21"]
[BlackClock "0:00:10"]

1. d4 {[%clk 0:03:00]}  Nf6 {[%clk 0:03:00]} 2. c4 {[%clk 0:02:59]}  g6 {[%clk 0:03:00]} 3. Nf3 {[%clk 0:02:57]}  Bg7 {[%clk 0:03:01]} 4. g3 {[%clk 0:02:57]}  d6 {[%clk 0:03:01]} 5. Bg2 {[%clk 0:02:57]}  O-O {[%clk 0:03:02]} 6. O-O {[%clk 0:02:57]}  Nfd7 {[%clk 0:03:03]} 7. Nc3 {[%clk 0:02:57]}  Nc6 {[%clk 0:03:03]} 8. h3 {[%clk 0:02:50]}  e5 {[%clk 0:03:03]} 9. d5 {[%clk 0:02:50]}  Ne7 {[%clk 0:03:03]} 10. e4 {[%clk 0:02:50]}  h6 {[%clk 0:03:03]} 11. Ne1 {[%clk 0:02:47]}  f5 {[%clk 0:03:04]} 12. Nd3 {[%clk 0:02:47]}  fxe4 {[%clk 0:03:01]} 13. Nxe4 {[%clk 0:02:47]}  Nf6 {[%clk 0:02:58]} 14. Nxf6+ {[%clk 0:02:40]}  Rxf6 {[%clk 0:02:59]} 15. f4 {[%clk 0:02:35]}  exf4 {[%clk 0:02:57]} 16. Nxf4 {[%clk 0:02:32]}  g5 {[%clk 0:02:57]} 17. Nh5 {[%clk 0:02:28]}  Rxf1+ {[%clk 0:02:57]} 18. Bxf1 {[%clk 0:02:26]}  Be5 {[%clk 0:02:53]} 19. Qf3 {[%clk 0:02:12]}  Qf8 {[%clk 0:02:35]} 20. Qxf8+ {[%clk 0:02:10]}  Kxf8 {[%clk 0:02:36]} 21. a4 {[%clk 0:01:38]}  Bf5 {[%clk 0:02:33]} 22. Ra3 {[%clk 0:01:35]}  Kg8 {[%clk 0:02:08]} 23. a5 {[%clk 0:01:31]}  Rf8 {[%clk 0:02:00]} 24. Be3 {[%clk 0:01:31]}  b6 {[%clk 0:01:54]} 25. axb6 {[%clk 0:01:29]}  axb6 {[%clk 0:01:55]} 26. Ra7 {[%clk 0:01:29]}  Bg6 {[%clk 0:01:31]} 27. g4 {[%clk 0:01:24]}  Rf3 {[%clk 0:01:06]} 28. Bf2 {[%clk 0:01:16]}  Bxh5 {[%clk 0:01:00]} 29. Rxc7 {[%clk 0:01:16]}  Nxd5 {[%clk 0:00:48]} 30. cxd5 {[%clk 0:01:05]}  Bf7 {[%clk 0:00:48]} 31. Bxb6 {[%clk 0:00:43]}  Bxb2 {[%clk 0:00:46]} 32. Rd7 {[%clk 0:00:32]}  Be5 {[%clk 0:00:39]} 33. Rd8+ {[%clk 0:00:25]}  Kg7 {[%clk 0:00:38]} 34. Bg2 {[%clk 0:00:22]}  Rb3 {[%clk 0:00:25]} 35. Bf2 {[%clk 0:00:21]}  Rb1+ {[%clk 0:00:25]} 36. Bf1 {[%clk 0:00:20]}  Bxd5 {[%clk 0:00:25]} 37. Rd7+ {[%clk 0:00:20]}  Kf6 {[%clk 0:00:24]} 38. Be3 {[%clk 0:00:19]}  Bc4 {[%clk 0:00:21]} 39. Kg2 {[%clk 0:00:17]}  Bxf1+ {[%clk 0:00:20]} 40. Kf2 {[%clk 0:00:18]}  Bxh3 {[%clk 0:00:20]} 41. Rd8 {[%clk 0:00:16]}  Bxg4 {[%clk 0:00:20]} 42. Rf8+ {[%clk 0:00:15]}  Kg7 {[%clk 0:00:21]} 43. Re8 {[%clk 0:00:14]}  Rb2+ {[%clk 0:00:17]} 44. Ke1 {[%clk 0:00:15]}  Re2+ {[%clk 0:00:16]} 45. Kf1 {[%clk 0:00:15]}  Rxe3 {[%clk 0:00:17]} 46. Re7+ {[%clk 0:00:15]}  Kf6 {[%clk 0:00:17]} 47. Re8 {[%clk 0:00:14]}  Bh3+ {[%clk 0:00:16]} 48. Kf2 {[%clk 0:00:14]}  Re4 {[%clk 0:00:12]} 49. Kg1 {[%clk 0:00:14]}  Bd4+ {[%clk 0:00:12]} 50. Kh2 {[%clk 0:00:14]}  Rxe8 {[%clk 0:00:12]} 51. Kg3 {[%clk 0:00:14]}  Be5+ {[%clk 0:00:11]} 52. Kf2 {[%clk 0:00:14]}  d5 {[%clk 0:00:11]} 53. Kf3 {[%clk 0:00:14]}  d4 {[%clk 0:00:11]} 54. Kf2 {[%clk 0:00:15]}  d3 {[%clk 0:00:11]} 55. Ke3 {[%clk 0:00:16]}  Bf5 {[%clk 0:00:11]} 56. Kd2 {[%clk 0:00:17]}  Bf4+ {[%clk 0:00:11]} 57. Kc3 {[%clk 0:00:17]}  d2 {[%clk 0:00:11]} 58. Kb2 {[%clk 0:00:18]}  d1=Q {[%clk 0:00:09]} 59. Ka2 {[%clk 0:00:19]}  Qc2+ {[%clk 0:00:09]} 60. Ka3 {[%clk 0:00:19]}  Ra8+ {[%clk 0:00:10]} 61. Kb4 {[%clk 0:00:19]}  Bd6+ {[%clk 0:00:10]} 62. Kb5 {[%clk 0:00:20]}  Bd7+ {[%clk 0:00:10]} 63. Kb6 {[%clk 0:00:21]}  Qc6# {[%clk 0:00:10]} 0-1


[Site "https://www.chess.com"]

[Event "Titled Tuesday Blitz May 23 Early 2023"]
[White "Theytookourjobs"]
[Black "Begunov, Konstantin"]
[BlackFideId "4118510"]
[WhiteElo "2328"]
[BlackElo "2050"]
[Result "1-0"]
[Round "03"]
[TimeControl "180+2"]
[Date "2023.05.23"]
[WhiteClock "0:00:03"]
[BlackClock "0:00:00"]

1. d4 {[%clk 0:02:54]}  d5 {[%clk 0:02:59]} 2. Bf4 {[%clk 0:02:54]}  c6 {[%clk 0:03:00]} 3. e3 {[%clk 0:02:55]}  Nf6 {[%clk 0:02:59]} 4. h3 {[%clk 0:02:55]}  Bf5 {[%clk 0:02:59]} 5. Bd3 {[%clk 0:02:55]}  Bxd3 {[%clk 0:02:58]} 6. Qxd3 {[%clk 0:02:55]}  e6 {[%clk 0:02:59]} 7. Nf3 {[%clk 0:02:54]}  Bd6 {[%clk 0:02:59]} 8. Ne5 {[%clk 0:02:54]}  O-O {[%clk 0:02:59]} 9. Nd2 {[%clk 0:02:54]}  c5 {[%clk 0:03:00]} 10. c3 {[%clk 0:02:54]}  Nc6 {[%clk 0:03:00]} 11. O-O {[%clk 0:02:49]}  Qc7 {[%clk 0:02:57]} 12. Nxc6 {[%clk 0:02:43]}  Bxf4 {[%clk 0:02:53]} 13. exf4 {[%clk 0:02:16]}  Qxc6 {[%clk 0:02:47]} 14. dxc5 {[%clk 0:02:11]}  Qxc5 {[%clk 0:02:46]} 15. Nb3 {[%clk 0:02:10]}  Qb6 {[%clk 0:02:45]} 16. Rfe1 {[%clk 0:02:03]}  Ne4 {[%clk 0:02:44]} 17. Re2 {[%clk 0:02:02]}  g6 {[%clk 0:02:36]} 18. h4 {[%clk 0:02:00]}  h5 {[%clk 0:02:32]} 19. g3 {[%clk 0:01:57]}  Rac8 {[%clk 0:02:23]} 20. Kg2 {[%clk 0:01:57]}  Rc4 {[%clk 0:02:17]} 21. Nd2 {[%clk 0:01:49]}  Nxd2 {[%clk 0:02:16]} 22. Qxd2 {[%clk 0:01:50]}  Rfc8 {[%clk 0:02:14]} 23. Rae1 {[%clk 0:01:46]}  Qc6 {[%clk 0:02:13]} 24. Kh2 {[%clk 0:01:40]}  b5 {[%clk 0:02:12]} 25. Re5 {[%clk 0:01:25]}  b4 {[%clk 0:02:04]} 26. f5 {[%clk 0:01:09]}  bxc3 {[%clk 0:02:03]} 27. bxc3 {[%clk 0:01:08]}  exf5 {[%clk 0:01:56]} 28. Rxd5 {[%clk 0:00:34]}  Rxc3 {[%clk 0:01:44]} 29. Rd8+ {[%clk 0:00:31]}  Kg7 {[%clk 0:01:27]} 30. Qd4+ {[%clk 0:00:28]}  f6 {[%clk 0:00:56]} 31. Re7+ {[%clk 0:00:23]}  Kh6 {[%clk 0:00:54]} 32. Qf4+ {[%clk 0:00:15]}  g5 {[%clk 0:00:50]} 33. hxg5+ {[%clk 0:00:16]}  Kg6 {[%clk 0:00:30]} 34. Rd6 {[%clk 0:00:09]}  Rc4 {[%clk 0:00:17]} 35. Rxc6 {[%clk 0:00:01]}  Rxf4 {[%clk 0:00:16]} 36. Rxc8 {[%clk 0:00:02]}  Rxf2+ {[%clk 0:00:15]} 37. Kg1 {[%clk 0:00:02]}  Rxa2 {[%clk 0:00:12]} 38. gxf6 {[%clk 0:00:03]}  Kxf6 {[%clk 0:00:12]} 39. Rb7 {[%clk 0:00:03]}  Kg5 {[%clk 0:00:10]} 40. Rc4 {[%clk 0:00:04]}  a5 {[%clk 0:00:07]} 41. Rg7+ {[%clk 0:00:04]}  Kf6 {[%clk 0:00:06]} 42. Ra7 {[%clk 0:00:05]}  Kg5 {[%clk 0:00:00]} 43. Rg7+ {[%clk 0:00:03]} 1-0


[Site "https://www.chess.com"]

[Event "Titled Tuesday Blitz May 23 Early 2023"]
[White "Kielinkei"]
[Black "Todorovic, Bojan"]
[BlackFideId "917087"]
[WhiteElo "2449"]
[BlackElo "2266"]
[Result "0-1"]
[Round "03"]
[TimeControl "180+2"]
[Date "2023.05.23"]
[WhiteClock "0:00:00"]
[BlackClock "0:00:16"]

1. d4 {[%clk 0:03:00]}  g6 {[%clk 0:02:58]} 2. e4 {[%clk 0:03:00]}  Bg7 {[%clk 0:02:58]} 3. Nc3 {[%clk 0:03:01]}  d6 {[%clk 0:02:57]} 4. Be3 {[%clk 0:03:01]}  a6 {[%clk 0:02:57]} 5. h4 {[%clk 0:03:01]}  Nf6 {[%clk 0:02:52]} 6. h5 {[%clk 0:03:01]}  Nxh5 {[%clk 0:02:51]} 7. Rxh5 {[%clk 0:03:01]}  gxh5 {[%clk 0:02:51]} 8. Qxh5 {[%clk 0:03:02]}  Nc6 {[%clk 0:02:31]} 9. O-O-O {[%clk 0:02:51]}  e6 {[%clk 0:02:17]} 10. e5 {[%clk 0:02:41]}  h6 {[%clk 0:01:57]} 11. f4 {[%clk 0:02:28]}  Qe7 {[%clk 0:01:55]} 12. d5 {[%clk 0:02:25]}  Nd8 {[%clk 0:01:23]} 13. Ne4 {[%clk 0:02:11]}  exd5 {[%clk 0:01:12]} 14. Rxd5 {[%clk 0:02:04]}  Be6 {[%clk 0:01:09]} 15. exd6 {[%clk 0:02:00]}  cxd6 {[%clk 0:01:09]} 16. Nxd6+ {[%clk 0:01:51]}  Kf8 {[%clk 0:01:09]} 17. Rd1 {[%clk 0:01:16]}  Nc6 {[%clk 0:01:00]} 18. Bc5 {[%clk 0:01:13]}  Kg8 {[%clk 0:01:00]} 19. Nf3 {[%clk 0:00:52]}  Qf6 {[%clk 0:00:58]} 20. c3 {[%clk 0:00:39]}  Qxf4+ {[%clk 0:00:58]} 21. Kb1 {[%clk 0:00:40]}  Rd8 {[%clk 0:00:51]} 22. Be2 {[%clk 0:00:34]}  b6 {[%clk 0:00:50]} 23. Ba3 {[%clk 0:00:33]}  Ne5 {[%clk 0:00:45]} 24. Nd4 {[%clk 0:00:25]}  Bg4 {[%clk 0:00:37]} 25. Bxg4 {[%clk 0:00:20]}  Qxg4 {[%clk 0:00:31]} 26. Qxg4 {[%clk 0:00:20]}  Nxg4 {[%clk 0:00:31]} 27. Nc6 {[%clk 0:00:18]}  Rd7 {[%clk 0:00:28]} 28. Nb8 {[%clk 0:00:16]}  Rd8 {[%clk 0:00:27]} 29. Nc6 {[%clk 0:00:16]}  Rd7 {[%clk 0:00:27]} 30. Nb8 {[%clk 0:00:17]}  Rd8 {[%clk 0:00:27]} 31. Nxa6 {[%clk 0:00:15]}  Kh7 {[%clk 0:00:25]} 32. Nc7 {[%clk 0:00:14]}  Be5 {[%clk 0:00:24]} 33. Ncb5 {[%clk 0:00:13]}  Rd7 {[%clk 0:00:23]} 34. Rf1 {[%clk 0:00:10]}  Rhd8 {[%clk 0:00:21]} 35. Rxf7+ {[%clk 0:00:08]}  Rxf7 {[%clk 0:00:21]} 36. Nxf7 {[%clk 0:00:09]}  Rd1+ {[%clk 0:00:20]} 37. Kc2 {[%clk 0:00:09]}  Rg1 {[%clk 0:00:20]} 38. Nxe5 {[%clk 0:00:09]}  Nxe5 {[%clk 0:00:20]} 39. Nd4 {[%clk 0:00:06]}  Rxg2+ {[%clk 0:00:20]} 40. Kb3 {[%clk 0:00:07]}  h5 {[%clk 0:00:21]} 41. Bd6 {[%clk 0:00:07]}  Nd3 {[%clk 0:00:20]} 42. Bc7 {[%clk 0:00:01]}  Rxb2+ {[%clk 0:00:19]} 43. Ka3 {[%clk 0:00:02]}  Rf2 {[%clk 0:00:17]} 44. Bxb6 {[%clk 0:00:00]}  Nc1 {[%clk 0:00:16]} 0-1


[Site "https://www.chess.com"]

[Event "Titled Tuesday Blitz May 23 Early 2023"]
[White "Dahlgren, James Allen"]
[Black "Gatterer, Florian"]
[WhiteFideId "22256873"]
[BlackFideId "811688"]
[WhiteElo "2194"]
[BlackElo "2221"]
[Result "0-1"]
[Round "03"]
[TimeControl "180+2"]
[Date "2023.05.23"]
[WhiteClock "0:01:57"]
[BlackClock "0:01:47"]

1. d3 {[%clk 0:02:57]}  d5 {[%clk 0:02:59]} 2. f4 {[%clk 0:02:51]}  Nf6 {[%clk 0:02:58]} 3. Nf3 {[%clk 0:02:51]}  g6 {[%clk 0:02:58]} 4. g3 {[%clk 0:02:45]}  Bg7 {[%clk 0:02:56]} 5. Bg2 {[%clk 0:02:42]}  c6 {[%clk 0:02:56]} 6. O-O {[%clk 0:02:41]}  Ng4 {[%clk 0:02:52]} 7. h3 {[%clk 0:02:40]}  Qb6+ {[%clk 0:02:51]} 8. d4 {[%clk 0:02:40]}  Nf6 {[%clk 0:02:47]} 9. e3 {[%clk 0:02:40]}  Ne4 {[%clk 0:02:46]} 10. Kh2 {[%clk 0:02:39]}  h5 {[%clk 0:02:33]} 11. Nbd2 {[%clk 0:02:37]}  Bf5 {[%clk 0:02:31]} 12. Nxe4 {[%clk 0:02:35]}  Bxe4 {[%clk 0:02:31]} 13. Ng5 {[%clk 0:02:29]}  Bxg2 {[%clk 0:02:23]} 14. Kxg2 {[%clk 0:02:30]}  e6 {[%clk 0:02:20]} 15. b3 {[%clk 0:02:28]}  c5 {[%clk 0:02:11]} 16. Bb2 {[%clk 0:02:27]}  cxd4 {[%clk 0:02:08]} 17. Bxd4 {[%clk 0:02:28]}  Bxd4 {[%clk 0:02:06]} 18. Qxd4 {[%clk 0:02:29]}  Qxd4 {[%clk 0:02:00]} 19. exd4 {[%clk 0:02:30]}  Nd7 {[%clk 0:02:00]} 20. g4 {[%clk 0:02:27]}  Nf6 {[%clk 0:01:56]} 21. Kf3 {[%clk 0:02:20]}  Rc8 {[%clk 0:01:54]} 22. Rf2 {[%clk 0:02:03]}  Rc3+ {[%clk 0:01:53]} 23. Kg2 {[%clk 0:02:02]}  hxg4 {[%clk 0:01:52]} 24. hxg4 {[%clk 0:02:01]}  Nxg4 {[%clk 0:01:51]} 25. Re2 {[%clk 0:02:01]}  Rh2+ {[%clk 0:01:47]} 26. Kf1 {[%clk 0:01:57]}  Rh1+ {[%clk 0:01:47]} 0-1


[Site "https://www.chess.com"]

[Event "Titled Tuesday Blitz May 23 Early 2023"]
[White "Acikel, Mert"]
[Black "Tarasova, Viktoriya"]
[WhiteFideId "12956465"]
[BlackFideId "4175840"]
[WhiteElo "2097"]
[BlackElo "2182"]
[Result "0-1"]
[Round "03"]
[TimeControl "180+2"]
[Date "2023.05.23"]
[WhiteClock "0:00:04"]
[BlackClock "0:00:21"]

1. e4 {[%clk 0:03:00]}  e5 {[%clk 0:02:52]} 2. Nf3 {[%clk 0:03:00]}  Nc6 {[%clk 0:02:51]} 3. Bc4 {[%clk 0:03:00]}  Bc5 {[%clk 0:02:49]} 4. c3 {[%clk 0:03:00]}  Nf6 {[%clk 0:02:49]} 5. d3 {[%clk 0:02:59]}  d6 {[%clk 0:02:49]} 6. O-O {[%clk 0:02:59]}  h6 {[%clk 0:02:49]} 7. Re1 {[%clk 0:02:58]}  a5 {[%clk 0:02:46]} 8. Bb3 {[%clk 0:02:57]}  Ba7 {[%clk 0:02:45]} 9. Nbd2 {[%clk 0:02:54]}  O-O {[%clk 0:02:45]} 10. h3 {[%clk 0:02:54]}  Be6 {[%clk 0:02:46]} 11. Nf1 {[%clk 0:02:53]}  Re8 {[%clk 0:02:45]} 12. Ng3 {[%clk 0:02:48]}  Qd7 {[%clk 0:02:45]} 13. Be3 {[%clk 0:02:47]}  Bxe3 {[%clk 0:02:44]} 14. Rxe3 {[%clk 0:02:47]}  Bxb3 {[%clk 0:02:40]} 15. Qxb3 {[%clk 0:02:48]}  a4 {[%clk 0:02:39]} 16. Qc2 {[%clk 0:02:44]}  b5 {[%clk 0:02:38]} 17. a3 {[%clk 0:02:38]}  Ne7 {[%clk 0:02:37]} 18. Rae1 {[%clk 0:02:37]}  Ng6 {[%clk 0:02:37]} 19. d4 {[%clk 0:02:34]}  Nf4 {[%clk 0:02:36]} 20. Kh2 {[%clk 0:02:24]}  Kh7 {[%clk 0:02:35]} 21. d5 {[%clk 0:02:15]}  g5 {[%clk 0:02:34]} 22. Nf5 {[%clk 0:02:14]}  g4 {[%clk 0:02:30]} 23. Ng1 {[%clk 0:02:14]}  gxh3 {[%clk 0:02:19]} 24. gxh3 {[%clk 0:02:14]}  Rg8 {[%clk 0:02:14]} 25. Rg3 {[%clk 0:02:12]}  N6h5 {[%clk 0:02:13]} 26. Rg4 {[%clk 0:02:07]}  Nf6 {[%clk 0:01:43]} 27. Rg3 {[%clk 0:02:05]}  N4h5 {[%clk 0:01:41]} 28. Qd2 {[%clk 0:01:52]}  Nf4 {[%clk 0:01:28]} 29. Ree3 {[%clk 0:01:52]}  N6h5 {[%clk 0:01:25]} 30. Rg4 {[%clk 0:01:43]}  Rg6 {[%clk 0:01:25]} 31. Nf3 {[%clk 0:01:24]}  Rag8 {[%clk 0:01:23]} 32. Rxg6 {[%clk 0:01:08]}  Rxg6 {[%clk 0:01:15]} 33. N3h4 {[%clk 0:01:05]}  Rg8 {[%clk 0:00:56]} 34. Qd1 {[%clk 0:01:05]}  Qd8 {[%clk 0:00:52]} 35. Qf3 {[%clk 0:00:43]}  Qg5 {[%clk 0:00:50]} 36. Re1 {[%clk 0:00:41]}  Qf6 {[%clk 0:00:31]} 37. Rg1 {[%clk 0:00:36]}  Rxg1 {[%clk 0:00:30]} 38. Kxg1 {[%clk 0:00:37]}  Qg5+ {[%clk 0:00:31]} 39. Qg4 {[%clk 0:00:38]}  Qxg4+ {[%clk 0:00:30]} 40. hxg4 {[%clk 0:00:38]}  Nf6 {[%clk 0:00:30]} 41. f3 {[%clk 0:00:36]}  Nd3 {[%clk 0:00:31]} 42. Ne7 {[%clk 0:00:17]}  Nxb2 {[%clk 0:00:31]} 43. Nhf5 {[%clk 0:00:14]}  Nc4 {[%clk 0:00:30]} 44. Nc6 {[%clk 0:00:14]}  Nxa3 {[%clk 0:00:29]} 45. Kf2 {[%clk 0:00:12]}  Nc2 {[%clk 0:00:24]} 46. Na5 {[%clk 0:00:04]}  a3 {[%clk 0:00:21]} 0-1


[Site "https://www.chess.com"]